[Event "Titled Tuesday Blitz October 11 Early 2022"]
[White "Sohier, Julien"]
[Black "Shaik Sumer Arsh"]
[WhiteFideId "645346"]
[BlackFideId "45020000"]
[WhiteElo "2209"]
[BlackElo "2190"]
[Result "1-0"]
[Round "05"]
[TimeControl "180+1"]
[Date "2022.10.12"]
[WhiteClock "0:00:11"]
[BlackClock "0:00:12"]

1. e4 {[%clk 0:03:00]}  e5 {[%clk 0:02:56]} 2. Nf3 {[%clk 0:03:00]}  Nc6 {[%clk 0:02:56]} 3. Bc4 {[%clk 0:02:57]}  Nf6 {[%clk 0:02:56]} 4. d3 {[%clk 0:02:50]}  Bc5 {[%clk 0:02:53]} 5. O-O {[%clk 0:02:47]}  d6 {[%clk 0:02:53]} 6. a4 {[%clk 0:02:47]}  a5 {[%clk 0:02:47]} 7. Re1 {[%clk 0:02:45]}  O-O {[%clk 0:02:45]} 8. h3 {[%clk 0:02:45]}  Be6 {[%clk 0:02:44]} 9. Nbd2 {[%clk 0:02:43]}  Qb8 {[%clk 0:02:34]} 10. Bb5 {[%clk 0:02:41]}  Qa7 {[%clk 0:02:28]} 11. Re2 {[%clk 0:02:36]}  Ne7 {[%clk 0:02:21]} 12. c3 {[%clk 0:02:32]}  c6 {[%clk 0:01:55]} 13. Bc4 {[%clk 0:02:31]}  d5 {[%clk 0:01:56]} 14. Bb3 {[%clk 0:02:24]}  Ng6 {[%clk 0:01:53]} 15. exd5 {[%clk 0:02:18]}  cxd5 {[%clk 0:01:50]} 16. Nxe5 {[%clk 0:02:08]}  Nxe5 {[%clk 0:01:44]} 17. Rxe5 {[%clk 0:02:09]}  Bxf2+ {[%clk 0:01:42]} 18. Kf1 {[%clk 0:01:51]}  Bg3 {[%clk 0:01:33]} 19. Re2 {[%clk 0:01:48]}  d4 {[%clk 0:00:47]} 20. Nf3 {[%clk 0:01:42]}  dxc3 {[%clk 0:00:42]} 21. bxc3 {[%clk 0:01:43]}  Qb6 {[%clk 0:00:37]} 22. Bxe6 {[%clk 0:01:31]}  fxe6 {[%clk 0:00:38]} 23. Be3 {[%clk 0:01:31]}  Qc6 {[%clk 0:00:33]} 24. Bd4 {[%clk 0:01:07]}  Nh5 {[%clk 0:00:18]} 25. Kg1 {[%clk 0:00:55]}  Rxf3 {[%clk 0:00:17]} 26. gxf3 {[%clk 0:00:50]}  Nf4 {[%clk 0:00:17]} 27. Re4 {[%clk 0:00:47]}  e5 {[%clk 0:00:13]} 28. Bxe5 {[%clk 0:00:42]}  Qg6 {[%clk 0:00:13]} 29. Kh1 {[%clk 0:00:28]}  Qh5 {[%clk 0:00:11]} 30. Qf1 {[%clk 0:00:19]}  g5 {[%clk 0:00:11]} 31. Bxf4 {[%clk 0:00:18]}  Bxf4 {[%clk 0:00:11]} 32. Qg2 {[%clk 0:00:18]}  Rf8 {[%clk 0:00:11]} 33. Rae1 {[%clk 0:00:16]}  h6 {[%clk 0:00:10]} 34. Qg4 {[%clk 0:00:16]}  Qg6 {[%clk 0:00:07]} 35. Qe6+ {[%clk 0:00:16]}  Qxe6 {[%clk 0:00:08]} 36. Rxe6 {[%clk 0:00:16]}  Bd2 {[%clk 0:00:08]} 37. R1e2 {[%clk 0:00:15]}  Bxc3 {[%clk 0:00:08]} 38. Re8 {[%clk 0:00:15]}  Bd4 {[%clk 0:00:03]} 39. Rxf8+ {[%clk 0:00:15]}  Kxf8 {[%clk 0:00:03]} 40. Re4 {[%clk 0:00:15]}  Bc5 {[%clk 0:00:02]} 41. Re5 {[%clk 0:00:14]}  b6 {[%clk 0:00:03]} 42. Re6 {[%clk 0:00:14]}  Kg7 {[%clk 0:00:03]} 43. Kg2 {[%clk 0:00:14]}  h5 {[%clk 0:00:03]} 44. Rc6 {[%clk 0:00:13]}  Kf7 {[%clk 0:00:02]} 45. h4 {[%clk 0:00:12]}  gxh4 {[%clk 0:00:01]} 46. Kh3 {[%clk 0:00:12]}  Bf2 {[%clk 0:00:02]} 47. Rh6 {[%clk 0:00:12]}  Kg7 {[%clk 0:00:02]} 48. Rxh5 {[%clk 0:00:12]}  Kg6 {[%clk 0:00:03]} 49. Rd5 {[%clk 0:00:13]}  Kf6 {[%clk 0:00:03]} 50. Kg4 {[%clk 0:00:13]}  Ke6 {[%clk 0:00:04]} 51. Rb5 {[%clk 0:00:13]}  Kd6 {[%clk 0:00:04]} 52. f4 {[%clk 0:00:13]}  Bd4 {[%clk 0:00:04]} 53. f5 {[%clk 0:00:13]}  Bf6 {[%clk 0:00:04]} 54. Kh3 {[%clk 0:00:10]}  Kc6 {[%clk 0:00:04]} 55. Kg4 {[%clk 0:00:10]}  Be7 {[%clk 0:00:03]} 56. Rb1 {[%clk 0:00:07]}  Bf6 {[%clk 0:00:02]} 57. Kh5 {[%clk 0:00:07]}  Kd5 {[%clk 0:00:02]} 58. Kg6 {[%clk 0:00:07]}  Bd4 {[%clk 0:00:01]} 59. f6 {[%clk 0:00:07]}  Bc5 {[%clk 0:00:02]} 60. f7 {[%clk 0:00:06]}  h3 {[%clk 0:00:02]} 61. Rh1 {[%clk 0:00:06]}  Ke6 {[%clk 0:00:01]} 62. Rxh3 {[%clk 0:00:06]}  Bf8 {[%clk 0:00:02]} 63. Rh8 {[%clk 0:00:05]}  Ke7 {[%clk 0:00:02]} 64. Rh3 {[%clk 0:00:05]}  Ke6 {[%clk 0:00:02]} 65. Re3+ {[%clk 0:00:05]}  Kd7 {[%clk 0:00:02]} 66. Re8 {[%clk 0:00:05]}  Be7 {[%clk 0:00:03]} 67. f8=Q {[%clk 0:00:04]}  Bxf8 {[%clk 0:00:04]} 68. Rxf8 {[%clk 0:00:05]}  Kc6 {[%clk 0:00:04]} 69. Rf5 {[%clk 0:00:05]}  Kb7 {[%clk 0:00:04]} 70. Rb5 {[%clk 0:00:06]}  Ka6 {[%clk 0:00:05]} 71. Kf7 {[%clk 0:00:06]}  Ka7 {[%clk 0:00:06]} 72. Ke6 {[%clk 0:00:07]}  Ka6 {[%clk 0:00:07]} 73. d4 {[%clk 0:00:08]}  Ka7 {[%clk 0:00:08]} 74. d5 {[%clk 0:00:09]}  Kb7 {[%clk 0:00:09]} 75. d6 {[%clk 0:00:10]}  Ka7 {[%clk 0:00:10]} 76. Ke7 {[%clk 0:00:10]}  Ka6 {[%clk 0:00:10]} 77. d7 {[%clk 0:00:11]}  Kb7 {[%clk 0:00:11]} 78. d8=Q {[%clk 0:00:10]}  Kc6 {[%clk 0:00:12]} 79. Qd7# {[%clk 0:00:11]} 1-0


[Site "https://www.chess.com"]

[Event "Titled Tuesday Blitz October 11 Early 2022"]
[White "Sonnenschein, Philipp"]
[Black "Zaksaite, Salomeja"]
[WhiteFideId "16250877"]
[BlackFideId "12801496"]
[WhiteElo "2225"]
[BlackElo "2094"]
[Result "1-0"]
[Round "05"]
[TimeControl "180+1"]
[Date "2022.10.12"]
[WhiteClock "0:01:06"]
[BlackClock "0:00:09"]

1. e4 {[%clk 0:03:00]}  c5 {[%clk 0:02:59]} 2. Nf3 {[%clk 0:03:00]}  e6 {[%clk 0:02:59]} 3. d4 {[%clk 0:03:00]}  cxd4 {[%clk 0:03:00]} 4. Nxd4 {[%clk 0:03:01]}  Nf6 {[%clk 0:03:00]} 5. Nc3 {[%clk 0:03:01]}  Nc6 {[%clk 0:03:01]} 6. g3 {[%clk 0:03:01]}  d5 {[%clk 0:03:00]} 7. exd5 {[%clk 0:03:01]}  exd5 {[%clk 0:03:00]} 8. Bg2 {[%clk 0:03:00]}  Bc5 {[%clk 0:02:55]} 9. Nxc6 {[%clk 0:02:53]}  bxc6 {[%clk 0:02:55]} 10. O-O {[%clk 0:02:54]}  O-O {[%clk 0:02:55]} 11. Na4 {[%clk 0:02:38]}  Bg4 {[%clk 0:02:25]} 12. Bf3 {[%clk 0:02:28]}  Bxf3 {[%clk 0:02:22]} 13. Qxf3 {[%clk 0:02:29]}  Bb6 {[%clk 0:02:10]} 14. Bg5 {[%clk 0:02:16]}  h6 {[%clk 0:02:10]} 15. Bxf6 {[%clk 0:02:15]}  Qxf6 {[%clk 0:02:11]} 16. Qxf6 {[%clk 0:02:15]}  gxf6 {[%clk 0:02:11]} 17. Rfe1 {[%clk 0:02:10]}  Rfe8 {[%clk 0:02:10]} 18. Kf1 {[%clk 0:02:03]}  Kg7 {[%clk 0:02:06]} 19. Rxe8 {[%clk 0:01:58]}  Rxe8 {[%clk 0:02:05]} 20. Nxb6 {[%clk 0:01:58]}  axb6 {[%clk 0:02:05]} 21. Re1 {[%clk 0:01:59]}  Ra8 {[%clk 0:01:44]} 22. a3 {[%clk 0:01:58]}  Ra5 {[%clk 0:01:25]} 23. Re7 {[%clk 0:01:49]}  Rb5 {[%clk 0:01:13]} 24. b4 {[%clk 0:01:39]}  d4 {[%clk 0:00:55]} 25. Rd7 {[%clk 0:01:25]}  c5 {[%clk 0:00:55]} 26. Rd5 {[%clk 0:01:25]}  Kf8 {[%clk 0:00:21]} 27. Ke2 {[%clk 0:01:25]}  Ke7 {[%clk 0:00:12]} 28. Kd3 {[%clk 0:01:06]}  Ke6 {[%clk 0:00:09]} 29. Kc4 {[%clk 0:01:06]} 1-0


[Site "https://www.chess.com"]

[Event "Titled Tuesday Blitz October 11 Early 2022"]
[White "Soto Vega, Jorge"]
[Black "Matinian, Nikita"]
[WhiteFideId "3800580"]
[BlackFideId "24129100"]
[WhiteElo "2263"]
[BlackElo "2422"]
[Result "1-0"]
[Round "05"]
[TimeControl "180+1"]
[Date "2022.10.12"]
[WhiteClock "0:00:36"]
[BlackClock "0:00:02"]

1. e4 {[%clk 0:03:00]}  c5 {[%clk 0:02:59]} 2. Nf3 {[%clk 0:03:00]}  d6 {[%clk 0:02:59]} 3. d4 {[%clk 0:02:59]}  cxd4 {[%clk 0:02:59]} 4. Nxd4 {[%clk 0:03:00]}  Nf6 {[%clk 0:03:00]} 5. f3 {[%clk 0:03:00]}  Nc6 {[%clk 0:02:59]} 6. c4 {[%clk 0:03:00]}  g6 {[%clk 0:02:58]} 7. Nc2 {[%clk 0:03:00]}  Bg7 {[%clk 0:02:58]} 8. Nc3 {[%clk 0:03:01]}  O-O {[%clk 0:02:59]} 9. Be3 {[%clk 0:03:01]}  Nd7 {[%clk 0:02:55]} 10. Qd2 {[%clk 0:03:01]}  f5 {[%clk 0:02:55]} 11. exf5 {[%clk 0:02:58]}  gxf5 {[%clk 0:02:54]} 12. Be2 {[%clk 0:02:56]}  Nde5 {[%clk 0:02:52]} 13. O-O {[%clk 0:02:54]}  Be6 {[%clk 0:02:45]} 14. Nd5 {[%clk 0:02:48]}  Kh8 {[%clk 0:02:45]} 15. Rad1 {[%clk 0:02:30]}  Rc8 {[%clk 0:02:44]} 16. b3 {[%clk 0:02:29]}  Bg8 {[%clk 0:02:42]} 17. Rfe1 {[%clk 0:02:27]}  Ng6 {[%clk 0:02:38]} 18. Bg5 {[%clk 0:02:21]}  Qd7 {[%clk 0:02:32]} 19. Be3 {[%clk 0:02:15]}  b6 {[%clk 0:02:26]} 20. Bf1 {[%clk 0:02:13]}  Nce5 {[%clk 0:02:22]} 21. Bh6 {[%clk 0:02:03]}  f4 {[%clk 0:02:20]} 22. Bxg7+ {[%clk 0:02:03]}  Kxg7 {[%clk 0:02:20]} 23. Re4 {[%clk 0:01:59]}  Bxd5 {[%clk 0:02:15]} 24. Qxd5 {[%clk 0:01:59]}  Rc5 {[%clk 0:02:08]} 25. Qd2 {[%clk 0:01:58]}  a5 {[%clk 0:01:44]} 26. Nd4 {[%clk 0:01:57]}  Kh8 {[%clk 0:01:30]} 27. Ne2 {[%clk 0:01:56]}  Qf5 {[%clk 0:01:27]} 28. Nc3 {[%clk 0:01:56]}  Qg5 {[%clk 0:01:24]} 29. Kh1 {[%clk 0:01:54]}  Nh4 {[%clk 0:01:22]} 30. Qf2 {[%clk 0:01:44]}  Nf5 {[%clk 0:01:17]} 31. Nd5 {[%clk 0:01:42]}  Rxd5 {[%clk 0:01:09]} 32. Rxd5 {[%clk 0:01:40]}  Ng3+ {[%clk 0:01:06]} 33. hxg3 {[%clk 0:01:32]}  fxg3 {[%clk 0:01:03]} 34. Qd4 {[%clk 0:01:32]}  Rf6 {[%clk 0:00:59]} 35. Kg1 {[%clk 0:01:04]}  Qc1 {[%clk 0:00:30]} 36. f4 {[%clk 0:00:54]}  Kg8 {[%clk 0:00:17]} 37. Rdxe5 {[%clk 0:00:47]}  dxe5 {[%clk 0:00:17]} 38. Qxe5 {[%clk 0:00:46]}  Rh6 {[%clk 0:00:15]} 39. Qg5+ {[%clk 0:00:44]}  Rg6 {[%clk 0:00:14]} 40. Qd5+ {[%clk 0:00:44]}  Kg7 {[%clk 0:00:08]} 41. Rxe7+ {[%clk 0:00:42]}  Kh6 {[%clk 0:00:09]} 42. Qd4 {[%clk 0:00:39]}  a4 {[%clk 0:00:04]} 43. Qe3 {[%clk 0:00:38]}  Qb2 {[%clk 0:00:03]} 44. f5+ {[%clk 0:00:38]}  Rg5 {[%clk 0:00:03]} 45. Qe6+ {[%clk 0:00:36]}  Kh5 {[%clk 0:00:02]} 46. Rxh7+ {[%clk 0:00:36]}  Kg4 {[%clk 0:00:02]} 47. Be2+ {[%clk 0:00:36]}  Kf4 {[%clk 0:00:02]} 48. Rh4+ {[%clk 0:00:36]} 1-0


[Site "https://www.chess.com"]

[Event "Titled Tuesday Blitz October 11 Early 2022"]
[White "Stribuk, Artiom"]
[Black "Ernst, Sipke"]
[WhiteFideId "13515659"]
[BlackFideId "1004689"]
[WhiteElo "2892"]
[BlackElo "2668"]
[Result "1-0"]
[Round "05"]
[TimeControl "180+1"]
[Date "2022.10.12"]
[WhiteClock "0:00:20"]
[BlackClock "0:00:35"]

1. d4 {[%clk 0:02:56]}  Nf6 {[%clk 0:02:58]} 2. c4 {[%clk 0:02:56]}  e6 {[%clk 0:02:58]} 3. Nc3 {[%clk 0:02:52]}  c5 {[%clk 0:02:57]} 4. d5 {[%clk 0:02:49]}  exd5 {[%clk 0:02:57]} 5. cxd5 {[%clk 0:02:50]}  d6 {[%clk 0:02:58]} 6. e4 {[%clk 0:02:51]}  g6 {[%clk 0:02:59]} 7. f4 {[%clk 0:02:52]}  Bg7 {[%clk 0:02:58]} 8. Bb5+ {[%clk 0:02:52]}  Nfd7 {[%clk 0:02:58]} 9. a4 {[%clk 0:02:51]}  O-O {[%clk 0:02:58]} 10. Nf3 {[%clk 0:02:51]}  Na6 {[%clk 0:02:57]} 11. O-O {[%clk 0:02:49]}  Nc7 {[%clk 0:02:57]} 12. Bd3 {[%clk 0:02:40]}  a6 {[%clk 0:02:54]} 13. Bd2 {[%clk 0:02:30]}  Rb8 {[%clk 0:02:54]} 14. a5 {[%clk 0:02:04]}  Nf6 {[%clk 0:02:54]} 15. h3 {[%clk 0:02:00]}  Bd7 {[%clk 0:02:53]} 16. Bc4 {[%clk 0:01:51]}  Bb5 {[%clk 0:02:48]} 17. b3 {[%clk 0:01:49]}  Re8 {[%clk 0:02:43]} 18. Re1 {[%clk 0:01:50]}  b6 {[%clk 0:02:33]} 19. axb6 {[%clk 0:01:49]}  Rxb6 {[%clk 0:02:32]} 20. Qc2 {[%clk 0:01:41]}  Nd7 {[%clk 0:02:15]} 21. Qd3 {[%clk 0:01:31]}  Qb8 {[%clk 0:01:49]} 22. e5 {[%clk 0:01:04]}  dxe5 {[%clk 0:01:49]} 23. d6 {[%clk 0:01:04]}  Ne6 {[%clk 0:01:49]} 24. fxe5 {[%clk 0:01:00]}  Nd4 {[%clk 0:01:40]} 25. Nxd4 {[%clk 0:00:33]}  cxd4 {[%clk 0:01:36]} 26. e6 {[%clk 0:00:29]}  Bxc4 {[%clk 0:01:29]} 27. Qxc4 {[%clk 0:00:29]}  fxe6 {[%clk 0:01:05]} 28. Rxe6 {[%clk 0:00:30]}  Kh8 {[%clk 0:00:56]} 29. Ne4 {[%clk 0:00:29]}  Rc8 {[%clk 0:00:53]} 30. Qf1 {[%clk 0:00:23]}  Rxb3 {[%clk 0:00:51]} 31. Qf7 {[%clk 0:00:20]}  Rb1+ {[%clk 0:00:39]} 32. Rxb1 {[%clk 0:00:20]}  Qxb1+ {[%clk 0:00:38]} 33. Kh2 {[%clk 0:00:21]}  Ne5 {[%clk 0:00:36]} 34. Re8+ {[%clk 0:00:20]}  Bf8 {[%clk 0:00:35]} 35. Qxf8# {[%clk 0:00:20]} 1-0


[Site "https://www.chess.com"]

[Event "Titled Tuesday Blitz October 11 Early 2022"]
[White "Subelj, Jan"]
[Black "Indjic, Aleksandar"]
[WhiteFideId "14618583"]
[BlackFideId "911925"]
[WhiteElo "2394"]
[BlackElo "2592"]
[Result "1/2-1/2"]
[Round "05"]
[TimeControl "180+1"]
[Date "2022.10.11"]
[WhiteClock "0:00:06"]
[BlackClock "0:00:35"]

1. e4 {[%clk 0:02:57]}  e5 {[%clk 0:02:59]} 2. Nf3 {[%clk 0:02:57]}  Nc6 {[%clk 0:03:00]} 3. Bb5 {[%clk 0:02:57]}  a6 {[%clk 0:03:00]} 4. Ba4 {[%clk 0:02:57]}  Bc5 {[%clk 0:03:00]} 5. c3 {[%clk 0:02:56]}  Nge7 {[%clk 0:02:58]} 6. d4 {[%clk 0:02:56]}  exd4 {[%clk 0:02:59]} 7. cxd4 {[%clk 0:02:56]}  Bb4+ {[%clk 0:02:59]} 8. Bd2 {[%clk 0:02:56]}  Bxd2+ {[%clk 0:02:59]} 9. Qxd2 {[%clk 0:02:55]}  d5 {[%clk 0:02:59]} 10. exd5 {[%clk 0:02:55]}  Qxd5 {[%clk 0:02:58]} 11. Nc3 {[%clk 0:02:53]}  Qe6+ {[%clk 0:02:40]} 12. Kf1 {[%clk 0:02:45]}  Qc4+ {[%clk 0:02:26]} 13. Kg1 {[%clk 0:02:42]}  O-O {[%clk 0:02:11]} 14. d5 {[%clk 0:02:35]}  Rd8 {[%clk 0:02:07]} 15. Bb3 {[%clk 0:02:34]}  Qb4 {[%clk 0:02:02]} 16. Re1 {[%clk 0:02:13]}  Na5 {[%clk 0:02:00]} 17. Qg5 {[%clk 0:02:10]}  Nxb3 {[%clk 0:01:08]} 18. Rxe7 {[%clk 0:01:53]}  h6 {[%clk 0:01:06]} 19. Qe3 {[%clk 0:01:43]}  Nc5 {[%clk 0:01:00]} 20. Re8+ {[%clk 0:01:25]}  Rxe8 {[%clk 0:00:59]} 21. Qxe8+ {[%clk 0:01:25]}  Kh7 {[%clk 0:00:59]} 22. h4 {[%clk 0:01:25]}  Qxb2 {[%clk 0:00:48]} 23. Qxf7 {[%clk 0:00:50]}  Qc1+ {[%clk 0:00:39]} 24. Kh2 {[%clk 0:00:50]}  Qxc3 {[%clk 0:00:39]} 25. Ng5+ {[%clk 0:00:46]}  hxg5 {[%clk 0:00:37]} 26. Qh5+ {[%clk 0:00:14]}  Kg8 {[%clk 0:00:36]} 27. Qe8+ {[%clk 0:00:15]}  Kh7 {[%clk 0:00:36]} 28. Qh5+ {[%clk 0:00:04]}  Kg8 {[%clk 0:00:36]} 29. Qe8+ {[%clk 0:00:05]}  Kh7 {[%clk 0:00:35]} 30. Qh5+ {[%clk 0:00:06]} 1/2-1/2


[Site "https://www.chess.com"]

[Event "Titled Tuesday Blitz October 11 Early 2022"]
[White "Terzi, Alexei"]
[Black "Shipov, Sergei"]
[WhiteFideId "13505076"]
[BlackFideId "4113624"]
[WhiteElo "2172"]
[BlackElo "2779"]
[Result "0-1"]
[Round "05"]
[TimeControl "180+1"]
[Date "2022.10.11"]
[WhiteClock "0:00:03"]
[BlackClock "0:01:36"]

1. e4 {[%clk 0:03:00]}  e6 {[%clk 0:02:59]} 2. d4 {[%clk 0:03:00]}  d5 {[%clk 0:02:59]} 3. Bd3 {[%clk 0:03:00]}  dxe4 {[%clk 0:02:59]} 4. Bxe4 {[%clk 0:03:01]}  Nf6 {[%clk 0:03:00]} 5. Bf3 {[%clk 0:03:01]}  c5 {[%clk 0:03:00]} 6. Ne2 {[%clk 0:03:02]}  Nc6 {[%clk 0:03:01]} 7. Be3 {[%clk 0:03:02]}  cxd4 {[%clk 0:03:00]} 8. Nxd4 {[%clk 0:03:02]}  Ne5 {[%clk 0:03:01]} 9. Nc3 {[%clk 0:03:00]}  a6 {[%clk 0:02:58]} 10. Qe2 {[%clk 0:02:48]}  Nxf3+ {[%clk 0:02:58]} 11. gxf3 {[%clk 0:02:47]}  Nd5 {[%clk 0:02:57]} 12. Qd3 {[%clk 0:02:02]}  e5 {[%clk 0:02:42]} 13. Nb3 {[%clk 0:01:34]}  Nxc3 {[%clk 0:02:26]} 14. Qxc3 {[%clk 0:01:28]}  Qf6 {[%clk 0:02:23]} 15. O-O-O {[%clk 0:01:21]}  Bf5 {[%clk 0:02:23]} 16. Rd5 {[%clk 0:01:15]}  Be6 {[%clk 0:02:12]} 17. Rxe5 {[%clk 0:01:05]}  Bd6 {[%clk 0:02:12]} 18. Bd4 {[%clk 0:00:56]}  Bxe5 {[%clk 0:02:09]} 19. Bxe5 {[%clk 0:00:57]}  Qh6+ {[%clk 0:02:09]} 20. Nd2 {[%clk 0:00:37]}  f6 {[%clk 0:02:09]} 21. Bd6 {[%clk 0:00:27]}  Rc8 {[%clk 0:02:00]} 22. Qd4 {[%clk 0:00:19]}  Kf7 {[%clk 0:01:55]} 23. Bf4 {[%clk 0:00:17]}  Qg6 {[%clk 0:01:52]} 24. Ne4 {[%clk 0:00:16]}  Rhd8 {[%clk 0:01:51]} 25. Qb6 {[%clk 0:00:12]}  Rd7 {[%clk 0:01:41]} 26. Re1 {[%clk 0:00:11]}  Qf5 {[%clk 0:01:41]} 27. Bg3 {[%clk 0:00:08]}  Qd5 {[%clk 0:01:39]} 28. Nd6+ {[%clk 0:00:05]}  Rxd6 {[%clk 0:01:38]} 29. Qxd6 {[%clk 0:00:05]}  Qxa2 {[%clk 0:01:37]} 30. b3 {[%clk 0:00:03]}  Qxb3 {[%clk 0:01:36]} 0-1


[Site "https://www.chess.com"]

[Event "Titled Tuesday Blitz October 11 Early 2022"]
[White "Toshali, V"]
[Black "Osiecki, Stanislaw"]
[WhiteFideId "5072611"]
[BlackFideId "1102990"]
[WhiteElo "1973"]
[BlackElo "2088"]
[Result "1-0"]
[Round "05"]
[TimeControl "180+1"]
[Date "2022.10.12"]
[WhiteClock "0:00:17"]
[BlackClock "0:00:08"]

1. d4 {[%clk 0:03:00]}  Nf6 {[%clk 0:02:56]} 2. Nf3 {[%clk 0:03:00]}  g6 {[%clk 0:02:56]} 3. Bg5 {[%clk 0:02:58]}  Bg7 {[%clk 0:02:56]} 4. Nbd2 {[%clk 0:02:58]}  d6 {[%clk 0:02:56]} 5. e4 {[%clk 0:02:45]}  O-O {[%clk 0:02:55]} 6. Bc4 {[%clk 0:02:43]}  h6 {[%clk 0:02:53]} 7. Bh4 {[%clk 0:02:33]}  Nbd7 {[%clk 0:02:52]} 8. e5 {[%clk 0:02:31]}  dxe5 {[%clk 0:02:51]} 9. dxe5 {[%clk 0:02:31]}  Ng4 {[%clk 0:02:45]} 10. e6 {[%clk 0:02:27]}  Nb6 {[%clk 0:02:37]} 11. exf7+ {[%clk 0:02:26]}  Kh7 {[%clk 0:02:33]} 12. Bb3 {[%clk 0:02:05]}  a5 {[%clk 0:02:27]} 13. a4 {[%clk 0:02:03]}  g5 {[%clk 0:02:22]} 14. Bg3 {[%clk 0:01:43]}  Bxb2 {[%clk 0:02:09]} 15. h4 {[%clk 0:01:37]}  Kg7 {[%clk 0:01:32]} 16. hxg5 {[%clk 0:01:32]}  hxg5 {[%clk 0:01:31]} 17. Nxg5 {[%clk 0:01:31]}  Rh8 {[%clk 0:01:27]} 18. Rxh8 {[%clk 0:01:14]}  Qxh8 {[%clk 0:01:24]} 19. Nh3 {[%clk 0:01:11]}  Bxa1 {[%clk 0:01:14]} 20. Qxa1+ {[%clk 0:01:11]}  Nf6 {[%clk 0:01:13]} 21. Qe5 {[%clk 0:00:57]}  Bxh3 {[%clk 0:01:08]} 22. gxh3 {[%clk 0:00:50]}  Qxh3 {[%clk 0:00:56]} 23. Qg5+ {[%clk 0:00:49]}  Kh8 {[%clk 0:00:55]} 24. Bh4 {[%clk 0:00:18]}  Qh1+ {[%clk 0:00:22]} 25. Ke2 {[%clk 0:00:18]}  Nh7 {[%clk 0:00:08]} 26. Qg8+ {[%clk 0:00:17]} 1-0


[Site "https://www.chess.com"]

[Event "Titled Tuesday Blitz October 11 Early 2022"]
[White "Tristan, Leonardo"]
[Black "Katz, Alexander"]
[WhiteFideId "113816"]
[BlackFideId "2039796"]
[WhiteElo "2446"]
[BlackElo "2388"]
[Result "1-0"]
[Round "05"]
[TimeControl "180+1"]
[Date "2022.10.12"]
[WhiteClock "0:00:09"]
[BlackClock "0:00:10"]

1. d4 {[%clk 0:01:31]}  d5 {[%clk 0:02:59]} 2. Nf3 {[%clk 0:01:32]}  Nf6 {[%clk 0:02:59]} 3. Bf4 {[%clk 0:01:32]}  Bf5 {[%clk 0:02:58]} 4. e3 {[%clk 0:01:32]}  e6 {[%clk 0:02:58]} 5. c4 {[%clk 0:01:33]}  Bb4+ {[%clk 0:02:48]} 6. Nbd2 {[%clk 0:01:32]}  c6 {[%clk 0:02:44]} 7. a3 {[%clk 0:01:32]}  Bd6 {[%clk 0:02:42]} 8. Bxd6 {[%clk 0:01:30]}  Qxd6 {[%clk 0:02:43]} 9. Be2 {[%clk 0:01:30]}  O-O {[%clk 0:02:43]} 10. O-O {[%clk 0:01:31]}  Nbd7 {[%clk 0:02:43]} 11. c5 {[%clk 0:01:30]}  Qe7 {[%clk 0:02:41]} 12. b4 {[%clk 0:01:31]}  e5 {[%clk 0:02:41]} 13. dxe5 {[%clk 0:01:31]}  Nxe5 {[%clk 0:02:42]} 14. Nxe5 {[%clk 0:01:32]}  Qxe5 {[%clk 0:02:42]} 15. Nf3 {[%clk 0:01:32]}  Qc7 {[%clk 0:02:39]} 16. Nd4 {[%clk 0:01:33]}  Bg6 {[%clk 0:02:40]} 17. Rc1 {[%clk 0:01:33]}  a6 {[%clk 0:02:37]} 18. a4 {[%clk 0:01:32]}  Nd7 {[%clk 0:02:37]} 19. Qb3 {[%clk 0:01:26]}  Rfe8 {[%clk 0:02:29]} 20. b5 {[%clk 0:01:24]}  axb5 {[%clk 0:02:28]} 21. axb5 {[%clk 0:01:24]}  Re4 {[%clk 0:02:11]} 22. Bd3 {[%clk 0:01:22]}  Rh4 {[%clk 0:02:08]} 23. g3 {[%clk 0:01:22]}  Bxd3 {[%clk 0:02:02]} 24. Qxd3 {[%clk 0:01:21]}  Re4 {[%clk 0:02:01]} 25. Nf5 {[%clk 0:01:16]}  Ne5 {[%clk 0:01:54]} 26. Qb3 {[%clk 0:00:46]}  Qd7 {[%clk 0:01:42]} 27. Nd6 {[%clk 0:00:37]}  Qh3 {[%clk 0:01:41]} 28. f4 {[%clk 0:00:37]}  Ng4 {[%clk 0:01:37]} 29. Qb2 {[%clk 0:00:29]}  Rb4 {[%clk 0:00:46]} 30. Qd2 {[%clk 0:00:22]}  Ra3 {[%clk 0:00:38]} 31. Ra1 {[%clk 0:00:15]}  Rxa1 {[%clk 0:00:26]} 32. Rxa1 {[%clk 0:00:16]}  h5 {[%clk 0:00:25]} 33. Qc2 {[%clk 0:00:15]}  g6 {[%clk 0:00:20]} 34. Qd2 {[%clk 0:00:15]}  Rb3 {[%clk 0:00:16]} 35. Ra8+ {[%clk 0:00:05]}  Kh7 {[%clk 0:00:16]} 36. Ra1 {[%clk 0:00:03]}  Rxe3 {[%clk 0:00:15]} 37. Qb2 {[%clk 0:00:02]}  d4 {[%clk 0:00:14]} 38. Nxb7 {[%clk 0:00:02]}  Rb3 {[%clk 0:00:10]} 39. Qg2 {[%clk 0:00:01]}  Qxg2+ {[%clk 0:00:10]} 40. Kxg2 {[%clk 0:00:02]}  Rb2+ {[%clk 0:00:11]} 41. Kf3 {[%clk 0:00:02]}  Rxb5 {[%clk 0:00:08]} 42. Ke4 {[%clk 0:00:02]}  Rxb7 {[%clk 0:00:08]} 43. Kxd4 {[%clk 0:00:03]}  Rd7+ {[%clk 0:00:08]} 44. Kc4 {[%clk 0:00:03]}  Ne3+ {[%clk 0:00:08]} 45. Kc3 {[%clk 0:00:03]}  Rd5 {[%clk 0:00:09]} 46. Ra5 {[%clk 0:00:03]}  Nf1 {[%clk 0:00:08]} 47. Kc4 {[%clk 0:00:03]}  Nxh2 {[%clk 0:00:08]} 48. Ra6 {[%clk 0:00:03]}  Nf1 {[%clk 0:00:08]} 49. Rxc6 {[%clk 0:00:03]}  Ne3+ {[%clk 0:00:08]} 50. Kb5 {[%clk 0:00:04]}  Nf5 {[%clk 0:00:08]} 51. Rc7 {[%clk 0:00:03]}  Kg7 {[%clk 0:00:08]} 52. Kb6 {[%clk 0:00:04]}  Nxg3 {[%clk 0:00:08]} 53. c6 {[%clk 0:00:04]}  h4 {[%clk 0:00:09]} 54. Rd7 {[%clk 0:00:05]}  Rf5 {[%clk 0:00:03]} 55. c7 {[%clk 0:00:05]}  Rf6+ {[%clk 0:00:03]} 56. Kb7 {[%clk 0:00:06]}  Rxf4 {[%clk 0:00:03]} 57. c8=Q {[%clk 0:00:06]}  h3 {[%clk 0:00:04]} 58. Qc3+ {[%clk 0:00:06]}  Rf6 {[%clk 0:00:03]} 59. Qxg3 {[%clk 0:00:06]}  h2 {[%clk 0:00:04]} 60. Qxh2 {[%clk 0:00:06]}  g5 {[%clk 0:00:04]} 61. Qe5 {[%clk 0:00:06]}  Kg6 {[%clk 0:00:05]} 62. Rd6 {[%clk 0:00:06]}  Rxd6 {[%clk 0:00:05]} 63. Qxd6+ {[%clk 0:00:07]}  f6 {[%clk 0:00:06]} 64. Kc6 {[%clk 0:00:08]}  g4 {[%clk 0:00:07]} 65. Kd5 {[%clk 0:00:08]}  Kg5 {[%clk 0:00:08]} 66. Ke4 {[%clk 0:00:09]}  f5+ {[%clk 0:00:09]} 67. Ke3 {[%clk 0:00:09]}  f4+ {[%clk 0:00:10]} 68. Qxf4+ {[%clk 0:00:09]} 1-0


[Site "https://www.chess.com"]